{"text_format":"1","workbook":"xlsx","n_sheets":1,"sheets":["Документ"],"not_rendered":{"charts":0,"images":0,"macros":0,"external_links":0,"defined_names":3,"comments":0,"pivot_tables":0},"unopened":[],"bounds":{"document_bytes":16777216,"sheet_cells":100000,"rows_first":2000,"rows_last":500,"rows_between":2000,"halvings":0,"cell_chars":16384,"cell_head_chars":4096},"cells_cut":0,"cells_raw":0,"read":"whole","date_system":"1900"}

{"sheet":"Документ","index":0,"n_rows":30,"n_cols":17,"rows_kept":30,"cut":false,"hidden":false,"merged":[[5,4,6,4],[5,0,6,0],[5,1,6,1],[5,6,6,6],[5,7,6,7],[5,5,6,5],[5,3,6,3],[5,2,6,2],[0,0,0,7],[1,0,1,7],[2,0,2,7],[3,0,3,7],[4,0,4,7]]}
[]
["Сведения об исполнении  бюджета Окуловского муниципального района                                                                                                                                               по расходам  в разрезе  муниципальных программ программ "]
["за 9 месяцев 2016 года"]
[]
["(тыс. рублей)"]
["Наименование муниципальных программ","целевая статья","Исполнено за 9 месяцев 2016 года","Уточненная роспись на 2017 год","Кассовый план на 9 месяцев 2017 года","Исполнено за 9 месяцев 2017 года","Динамика к аналогичному периоду 2016 года в %","Процент исполнения к плану 9 месяцев 2017 года"]
[]
[1,2,3,4,5,6,7,8]
["    Муниципальная программа \"Управление муниципальными финансами в Окуловском муниципальном районе на 2014-2020 годы\"","0100000000",20052.099999999999,42520.800000000003,22264.799999999999,22188.400000000001,{"$f":"F9/C9*100","v":110.65374698909342},{"$f":"F9/E9*100","v":99.656857461104536},null,null,null,null,null,null,null,null,{"$f":"1000","v":1000}]
["    Муниципальная программа \"Развитие муниципальной службы в Администрации Окуловского муниципального района на 2015-2020 годы\"","0200000000",26.8,54.4,27,21.6,{"$f":"F10/C10*100","v":80.597014925373131},{"$f":"F10/E10*100","v":80}]
["    Муниципальная программа \"Доступная среда\" в Окуловском муниципальном районе на 2015-2017 годы","0300000000",50,100,100,100,200,100]
["    Муниципальная программа \"Развитие архивного дела в Окуловском муниципальном районе на 2016-2020 годы\"","0400000000",45,45,7.8,7.8,17.333333333333336,100]
["    Муниципальная программа \"Развитие информационного общества и формирование электронного правительства в Окуловском муниципальном районе на 2014-2020 годы\"","0500000000",83.3,112.5,75.900000000000006,75.900000000000006,91.116446578631454,100]
["    Муниципальная программа \"Профилактика преступлений и иных правонарушений в Окуловском муниципальном районе на 2014-2019 годы\"","0600000000",115.2,130,44,44,38.194444444444443,100]
["    Муниципальная программа \"Развитие сельского хозяйства в Окуловском муниципальном районе на 2014-2020 годы\"","0800000000",5.0999999999999996,10,3.2,3.2,62.745098039215698,100]
["    Муниципальная программа \"Устойчивое развитие сельских территорий Окуловского муниципального района на 2014-2020 годы\"","0900000000",0,6,0,0,{"$error":"#DIV/0!"},{"$error":"#DIV/0!"}]
["    Муниципальная программа \"Развитие системы управления муниципальным имуществом в Окуловском муниципальном районе на 2015-2020 годы\"","1000000000",102,400,141.19999999999999,141.19999999999999,138.43137254901961,100]
["    Муниципальная программа \"Обеспечение экономического развития Окуловского муниципального района на 2015-2020 годы\"","1100000000",29,41.9,41.9,41.9,144.48275862068965,100]
["    Муниципальная программа \"Развитие и содержание автомобильных дорог общего пользования местного значения вне границ населенных пунктов в границах Окуловского муниципального района на 2015-2019 годы\"","1200000000",2271.8000000000002,12936.8,3997.2,2306.6999999999998,101.53622678052643,57.707895526868803]
["    Муниципальная программа \"Развитие образования в Окуловском муниципальном районе на 2014-2020 годы\"","1400000000",212682.1,284438.40000000002,213113.7,211757,99.565031565891061,99.363391466620868]
["    Муниципальная программа \"Водоснабжение в Окуловском муниципальном районе на 2017- 2019 годы\"","1500000000",0,1002,48.9,48.9,{"$error":"#DIV/0!"},{"$f":"F21/E21*100","v":100}]
["    Муниципальная программа \"Развитие культуры и туризма в Окуловском муниципальном районе на 2014-2020 годы\"","1600000000",37585.300000000003,59940.1,43886.8,43817.4,116.58121659265723,99.841865891338628]
["    Муниципальная программа \"Обеспечение жильем молодых семей в Окуловском муниципальном районе на 2015-2017 годы\"","1700000000",576.5,1345,1345,1345,233.30442324371202,100]
["    Муниципальная программа \"Развитие физической культуры и спорта в Окуловском муниципальном районе на 2014-2020 годы\"","2000000000",850.1,24292.6,4245.2,4238.5,498.58840136454535,99.84217469141619]
["    Муниципальная программа «Берегоукрепительные работы на р.Перетна в районе домов 17, 18, 21 и 22 по ул.Куйбышева в п.Кулотино Окуловского района Новгородской области для исполнения решения суда на 2017-2018 годы»","2100000000",0,300,0,0,{"$error":"#DIV/0!"},{"$error":"#DIV/0!"}]
["Муниципальная программа \"Капитальный ремонт плотины \"Верхняя\" на реке Перетна Нижнего водохранилища в Окуловском районе Новгородской области на 2015-2016 годы\"","2200000000",20.399999999999999,0,0,0,0,{"$error":"#DIV/0!"}]
["    Муниципальная программа \"Капитальный ремонт муниципального жилого фонда в Окуловском муниципальном районе на 2015-2019 годы\"","2300000000",220.3,343.9,156.4,156.4,70.994098955969136,100]
["    Муниципальная программа \"Социальная поддержка граждан в Окуловском муниципальном районе на 2016-2020 годы\"","2500000000",69355.899999999994,112940.9,72447.3,68363.7,98.56940793789714,94.363351015151693]
["    Муниципальная программа \"Градостроительная политика на территории Окуловского муниципального района на 2016-2020 годы\"","2700000000",60,null,0,0,0,{"$error":"#DIV/0!"}]
["Итого",null,{"$f":"SUM(C9:C29)","v":344130.9},{"$f":"SUM(D9:D29)","v":540960.30000000005},{"$f":"SUM(E9:E29)","v":361946.30000000005},{"$f":"SUM(F9:F29)","v":354657.60000000003},103.05892321788018,97.986248236271507]